[Event "Romanian-ch Women 2022"]
[Site "Eforie Nord"]
[Date "2022.02.20"]
[Round "1.10"]
[White "Schiopu, Andreea-Alexandra"]
[Black "Marin, Irina-Luiza"]
[Result "0-1"]
[ECO "A37"]
[WhiteElo "1733"]
[BlackElo "2058"]
[Annotator "ChessBase"]
[PlyCount "78"]
[EventDate "2022.02.20"]
[EventType "swiss"]
[EventCountry "ROU"]
[SourceTitle "playchess.com"]
[Source "ChessBase"]
[SourceQuality "1"]
[TimeControl "40/5400+30:900+30"]

1. Nf3 {[%emt 0:00:07]} g6 {[%emt 0:00:11]} 2. c4 {[%emt 0:00:15]} Bg7 {[%emt 0:00:11]} 3. g3 {[%emt 0:00:31]} e5 {[%emt 0:00:55]} 4. Nc3 {[%emt 0:01:11]} d6 {[%emt 0:04:42]} 5. Bg2 {[%emt 0:02:00]} c5 {[%emt 0:05:09]} 6. d3 {[%emt 0:03:36]} Nc6 {[%emt 0:00:39]} 7. O-O {[%emt 0:00:32]} Nge7 {[%emt 0:00:47]} 8. Rb1 {[%emt 0:02:31]} O-O {[%emt 0:01:51]} 9. a3 {[%emt 0:01:13]} a5 {[%emt 0:00:57]} 10. Nd2 {[%emt 0:04:36]} Rb8 {[%emt 0:05:01]} 11. Nd5 {[%emt 0:10:36]} b5 {[%emt 0:09:36]} 12. cxb5 {[%emt 0:01:38]} Rxb5 {[%emt 0:09:07]} 13. Qa4 {[%emt 0:03:28]} Rb8 {[%emt 0:00:34]} 14. Nc4 {[%emt 0:03:54]} Nxd5 {[%emt 0:16:39]} 15. Qxc6 {[%emt 0:02:20]} Nc3 {[%emt 0:00:39]} 16. Ra1 {[%emt 0:01:56]} Nxe2+ {[%emt 0:00:25]} 17. Kh1 {[%emt 0:00:09]} Be6 {[%emt 0:11:27]} 18. Qxd6 {[%emt 0:02:30]} Bxc4 {[%emt 0:01:51]} 19. Qxd8 {[%emt 0:00:20]} Rfxd8 {[%emt 0:00:10]} 20. dxc4 {[%emt 0:00:32]} Nxc1 {[%emt 0:00:35]} 21. Raxc1 {[%emt 0:01:11]} Rxb2 {[%emt 0:00:15]} 22. Bd5 {[%emt 0:01:11]} Kf8 {[%emt 0:01:56]} 23. Rcd1 {[%emt 0:10:29]} f5 {[%emt 0:02:36]} 24. Kg2 {[%emt 0:03:07]} e4 {[%emt 0:01:39]} 25. Kg1 {[%emt 0:10:45]} Bd4 {[%emt 0:02:55]} 26. Rb1 {[%emt 0:05:48]} Rdb8 {[%emt 0:03:50]} 27. Rxb2 {[%emt 0:00:29]} Rxb2 {[%emt 0:00:07]} 28. Bc6 {[%emt 0:00:44]} Ke7 {[%emt 0:00:55]} 29. a4 {[%emt 0:02:29]} Kd6 {[%emt 0:01:16]} 30. Be8 {[%emt 0:02:21]} g5 {[%emt 0:02:00]} 31. Bb5 {[%emt 0:03:24]} Ke5 {[%emt 0:04:15]} 32. Bc6 {[%emt 0:02:43]} h5 {[%emt 0:03:02]} 33. h3 {[%emt 0:04:43]} f4 {[%emt 0:04:22]} 34. g4 {[%emt 0:03:12]} hxg4 {[%emt 0:00:31]} 35. hxg4 {[%emt 0:00:20]} f3 {[%emt 0:00:31]} 36. Bd5 {[%emt 0:04:37]} Kf4 {[%emt 0:00:47]} 37. Be6 {[%emt 0:01:01]} e3 {[%emt 0:01:52]} 38. fxe3+ {[%emt 0:00:34]} Bxe3+ {[%emt 0:00:08]} 39. Kh1 {[%emt 0:00:13]} Kg3 {[%emt 0:00:13]} 0-1

[Event "Romanian-ch Women 2022"]
[Site "Eforie Nord"]
[Date "2022.02.20"]
[Round "1.11"]
[White "Bucur, Denisa-Andreea"]
[Black "Hoanca, Alexia-Ioana"]
[Result "0-1"]
[ECO "A43"]
[WhiteElo "2023"]
[BlackElo "1710"]
[Annotator "ChessBase"]
[PlyCount "72"]
[EventDate "2022.02.20"]
[EventType "swiss"]
[EventCountry "ROU"]
[SourceTitle "playchess.com"]
[Source "ChessBase"]
[SourceQuality "1"]
[TimeControl "40/5400+30:900+30"]

1. d4 {[%emt 0:00:02]} Nf6 {[%emt 0:00:09]} 2. Nf3 {[%emt 0:00:10]} c5 {[%emt 0:00:13]} 3. d5 {[%emt 0:00:07]} b5 {[%emt 0:00:12]} 4. Bg5 {[%emt 0:00:10]} Qb6 {[%emt 0:00:24]} 5. e3 {[%emt 0:00:41]} d6 {[%emt 0:04:41]} 6. c4 {[%emt 0:04:22]} Ba6 {[%emt 0:07:31]} 7. Qc2 {[%emt 0:10:40]} Nbd7 {[%emt 0:03:58]} 8. Nc3 {[%emt 0:03:12]} bxc4 {[%emt 0:04:00]} 9. Be2 {[%emt 0:05:28]} g6 {[%emt 0:04:45]} 10. Bxf6 {[%emt 0:05:43]} exf6 {[%emt 0:02:08]} 11. Nd2 {[%emt 0:03:33]} Bg7 {[%emt 0:04:10]} 12. O-O {[%emt 0:05:11]} O-O {[%emt 0:03:07]} 13. Nxc4 {[%emt 0:06:30]} Bxc4 {[%emt 0:13:47]} 14. Bxc4 {[%emt 0:00:03]} Ne5 {[%emt 0:00:56]} 15. Be2 {[%emt 0:01:33]} f5 {[%emt 0:01:05]} 16. Rab1 {[%emt 0:02:19]} Rab8 {[%emt 0:04:16]} 17. h3 {[%emt 0:04:28]} Rb7 {[%emt 0:08:41]} 18. Nb5 {[%emt 0:11:29]} Rfb8 {[%emt 0:06:57]} 19. Na3 {[%emt 0:01:12]} Qd8 {[%emt 0:09:10]} 20. f4 {[%emt 0:04:34]} Nd7 {[%emt 0:00:20]} 21. Nc4 {[%emt 0:00:25]} Qe7 {[%emt 0:06:23]} 22. Qd3 {[%emt 0:03:03]} Rb5 {[%emt 0:02:33]} 23. b3 {[%emt 0:01:16]} Nb6 {[%emt 0:07:16]} 24. a4 {[%emt 0:09:02]} Nxc4 {[%emt 0:02:10]} 25. axb5 {[%emt 0:01:29]} Nxe3 {[%emt 0:00:18]} 26. Rfe1 {[%emt 0:03:08]} Bd4 {[%emt 0:00:49]} 27. Kh1 {[%emt 0:00:19]} Qh4 {[%emt 0:01:31]} 28. Rf1 {[%emt 0:11:13]} Qg3 {[%emt 0:00:18]} 29. Rf2 {[%emt 0:00:17]} Qxf2 {[%emt 0:00:07]} 30. Bf3 {[%emt 0:00:14]} Qc2 {[%emt 0:00:20]} 31. Qxc2 {[%emt 0:00:06]} Nxc2 {[%emt 0:00:06]} 32. Be2 {[%emt 0:00:02]} Re8 {[%emt 0:00:21]} 33. Bd3 {[%emt 0:00:11]} Nb4 {[%emt 0:00:53]} 34. Bc4 {[%emt 0:00:06]} Bc3 {[%emt 0:00:13]} 35. Kh2 {[%emt 0:00:14]} Re1 {[%emt 0:00:23]} 36. Rxe1 {[%emt 0:00:01]} Bxe1 {[%emt 0:00:06]} 0-1

[Event "Romanian-ch Women 2022"]
[Site "Eforie Nord"]
[Date "2022.02.20"]
[Round "1.12"]
[White "Pirvan, Maria"]
[Black "Baciu, Anca-Otilia"]
[Result "0-1"]
[ECO "B98"]
[WhiteElo "1627"]
[BlackElo "2014"]
[Annotator "NA"]
[PlyCount "102"]
[EventDate "2022.02.20"]
[EventType "swiss"]
[EventCountry "ROU"]
[SourceTitle "playchess.com"]
[Source "ChessBase"]
[SourceQuality "1"]
[TimeControl "40/5400+30:900+30"]

1. e4 {[%emt 0:00:07]} c5 {[%emt 0:00:09]} 2. Nf3 {[%emt 0:00:05]} e6 {[%emt 0:00:06]} 3. d4 {[%emt 0:00:04]} cxd4 {[%emt 0:00:04]} 4. Nxd4 {[%emt 0:00:06]} Nf6 {[%emt 0:00:09]} 5. Nc3 {[%emt 0:00:03]} d6 {[%emt 0:00:08]} 6. Bg5 {[%emt 0:00:14]} Be7 {[%emt 0:00:15]} 7. f4 {[%emt 0:00:06]} h6 {[%emt 0:01:17]} 8. Bh4 {[%emt 0:00:40]} a6 {[%emt 0:01:17]} 9. Qf3 {[%emt 0:01:22]} Qb6 {[%emt 0:09:07]} 10. O-O-O {[%emt 0:09:08]} Nc6 {[%emt 0:07:22]} 11. Bf2 {[%emt 0:08:44]} Qc7 {[%emt 0:04:29]} 12. g4 {[%emt 0:12:27]} Nxd4 {[%emt 0:28:04]} 13. Bxd4 {[%emt 0:11:56]} e5 {[%emt 0:00:10]} 14. fxe5 {[%emt 0:01:37]} dxe5 {[%emt 0:00:07]} 15. Qg3 {[%emt 0:02:05]} Bd6 {[%emt 0:01:04]} (15... Nxg4 $2 16. Nd5 Bg5+ 17. Kb1 $18) ({Much less strong is} 15... Bxg4 16. Bxe5 Qc8 17. Rd3 $16) 16. Bg1 {[%emt 0:08:02]} Bxg4 {[%emt 0:10:36]} 17. Nd5 {[%emt 0:22:36]} (17. Rd3 $1 $11) 17... Nxd5 {[%emt 0:01:24]} 18. Rxd5 {[%emt 0:02:16]} Be6 {[%emt 0:09:25]} 19. Qxg7 {[%emt 0:05:32]} O-O-O {[%emt 0:01:01]} 20. Rd3 {[%emt 0:00:51]} Bb4 {[%emt 0:09:37]} 21. a3 $1 {[%emt 0:03:23]} Ba5 {[%emt 0:00:40]} 22. b4 {[%emt 0:01:24]} Rxd3 {[%emt 0:02:58]} (22... Rhg8 $1 $11 23. Rxd8+ (23. Qxh6 Rxd3 24. Bxd3 Qc3 $15) 23... Rxd8) 23. Bxd3 {[%emt 0:00:35]} Rd8 {[%emt 0:00:06]} 24. Kd2 {[%emt 0:03:26]} Bb6 {[%emt 0:03:50]} 25. Bxb6 {[%emt 0:00:12]} Qxb6 {[%emt 0:00:04]} 26. Qxe5 {[%emt 0:00:16]} Qf2+ {[%emt 0:02:50]} 27. Kc3 {[%emt 0:01:11]} Qb6 {[%emt 0:02:16]} 28. Rf1 {[%emt 0:02:12]} Qc6+ $16 {[%emt 0:00:27]} ({Black should play} 28... Rg8 29. Rf3 Rg2) 29. Kb2 {[%emt 0:00:51]} Qa4 {[%emt 0:01:03]} 30. Qc5+ {[%emt 0:01:14]} Kb8 {[%emt 0:00:16]} 31. Bc4 {[%emt 0:00:38]} Rc8 {[%emt 0:02:48]} 32. Qd6+ {[%emt 0:01:47]} Ka8 {[%emt 0:00:06]} 33. Bb3 {[%emt 0:00:22]} Bxb3 {[%emt 0:02:05]} 34. cxb3 {[%emt 0:00:04]} Qb5 {[%emt 0:00:06]} 35. Rf2 {[%emt 0:00:39]} Qg5 {[%emt 0:01:00]} 36. Rd2 {[%emt 0:00:57]} Qg1 {[%emt 0:00:36]} 37. Rd1 {[%emt 0:00:48]} Qg2+ {[%emt 0:00:19]} 38. Rd2 {[%emt 0:00:47]} Qxe4 {[%emt 0:00:18]} 39. Qxh6 {[%emt 0:00:39]} Qe5+ {[%emt 0:00:42]} 40. Ka2 {[%emt 0:00:00]} f5 {[%emt 0:00:00]} 41. Qb6 {[%emt 0:14:11]} Qe4 {[%emt 0:10:58]} 42. Qf2 {[%emt 0:01:26]} f4 {[%emt 0:01:20]} 43. h4 {[%emt 0:00:54]} f3 {[%emt 0:01:52]} 44. h5 {[%emt 0:00:25]} Qf4 {[%emt 0:01:16]} 45. Rb2 {[%emt 0:01:00]} Rf8 {[%emt 0:01:31]} 46. Rc2 {[%emt 0:00:31]} Qf5 {[%emt 0:01:21]} 47. Rc5 {[%emt 0:00:24]} Qe4 {[%emt 0:00:59]} 48. Rc2 {[%emt 0:00:21]} Qxc2+ {[%emt 0:00:15]} 49. Qxc2 {[%emt 0:00:33]} f2 {[%emt 0:00:04]} 50. h6 {[%emt 0:00:32]} f1=Q {[%emt 0:00:10]} 51. h7 {[%emt 0:00:35]} Qf2 {[%emt 0:00:22]} 0-1

[Event "Romanian-ch Women 2022"]
[Site "Eforie Nord"]
[Date "2022.02.21"]
[Round "2.1"]
[White "Marin, Irina-Luiza"]
[Black "Bulmaga, Irina"]
[Result "0-1"]
[ECO "A36"]
[WhiteElo "2058"]
[BlackElo "2390"]
[Annotator "ChessBase"]
[PlyCount "84"]
[EventDate "2022.02.20"]
[EventType "swiss"]
[EventCountry "ROU"]
[SourceTitle "playchess.com"]
[Source "ChessBase"]
[SourceQuality "1"]
[TimeControl "40/5400+30:900+30"]

1. c4 {[%emt 0:00:10]} c5 {[%emt 0:00:07]} 2. g3 {[%emt 0:00:15]} g6 {[%emt 0:00:19]} 3. Bg2 {[%emt 0:00:12]} Bg7 {[%emt 0:00:11]} 4. Nc3 {[%emt 0:01:25]} Nc6 {[%emt 0:00:17]} 5. e4 {[%emt 0:00:18]} d6 {[%emt 0:00:24]} 6. Nge2 {[%emt 0:00:27]} Nf6 {[%emt 0:00:33]} 7. d3 {[%emt 0:00:29]} a6 {[%emt 0:00:52]} 8. O-O {[%emt 0:00:50]} O-O {[%emt 0:01:42]} 9. h3 {[%emt 0:00:45]} Rb8 {[%emt 0:00:51]} 10. a4 {[%emt 0:00:58]} Ne8 {[%emt 0:00:36]} 11. Be3 {[%emt 0:01:04]} b5 {[%emt 0:02:51]} 12. cxb5 {[%emt 0:22:41]} axb5 {[%emt 0:00:13]} 13. Nxb5 {[%emt 0:00:39]} Nc7 {[%emt 0:08:54]} 14. Nec3 {[%emt 0:11:33]} Nxb5 {[%emt 0:07:40]} 15. Nxb5 {[%emt 0:01:08]} Ba6 {[%emt 0:03:35]} 16. f4 {[%emt 0:08:03]} Bxb5 {[%emt 0:10:49]} 17. axb5 {[%emt 0:00:13]} Nd4 {[%emt 0:01:54]} 18. Rf2 {[%emt 0:08:00]} Rxb5 {[%emt 0:01:10]} 19. Ra7 {[%emt 0:05:17]} Qb8 {[%emt 0:12:51]} 20. Qa1 {[%emt 0:07:26]} Nc6 {[%emt 0:03:03]} 21. Ra2 {[%emt 0:02:25]} Rb3 {[%emt 0:07:18]} 22. e5 {[%emt 0:03:18]} Rxd3 {[%emt 0:04:10]} 23. Re2 {[%emt 0:16:07]} Nd4 {[%emt 0:16:45]} 24. Bxd4 {[%emt 0:00:10]} Rxd4 {[%emt 0:01:29]} 25. Ra8 {[%emt 0:00:48]} Qb5 {[%emt 0:01:57]} 26. Rxf8+ {[%emt 0:00:21]} Bxf8 {[%emt 0:00:14]} 27. Qe1 {[%emt 0:00:33]} dxe5 {[%emt 0:00:28]} 28. fxe5 {[%emt 0:00:27]} e6 {[%emt 0:00:48]} 29. Kh2 {[%emt 0:00:38]} h5 {[%emt 0:00:53]} 30. Qf2 {[%emt 0:03:24]} Bg7 {[%emt 0:01:52]} 31. Qe3 {[%emt 0:01:51]} Rd3 {[%emt 0:03:16]} 32. Qe4 {[%emt 0:01:19]} Rd5 {[%emt 0:00:35]} 33. Qf3 {[%emt 0:01:33]} h4 {[%emt 0:01:18]} 34. gxh4 {[%emt 0:01:07]} Bxe5+ {[%emt 0:00:57]} 35. Kg1 {[%emt 0:00:04]} Bxb2 {[%emt 0:00:56]} 36. Rf2 {[%emt 0:00:55]} Rf5 {[%emt 0:03:27]} 37. Qa8+ {[%emt 0:00:09]} Kg7 {[%emt 0:00:11]} 38. Rxf5 {[%emt 0:00:44]} gxf5 {[%emt 0:01:26]} 39. Qd8 {[%emt 0:01:19]} Bd4+ {[%emt 0:00:21]} 40. Kh2 {[%emt 0:00:00]} Be5+ {[%emt 0:00:00]} 41. Kg1 {[%emt 0:01:14]} Qb1+ {[%emt 0:00:35]} 42. Kf2 {[%emt 0:01:32]} Bd4+ {[%emt 0:01:09]} 0-1

[Event "Romanian-ch Women 2022"]
[Site "Eforie Nord"]
[Date "2022.02.21"]
[Round "2.2"]
[White "Baciu, Anca-Otilia"]
[Black "Cosma, Elena-Luminita"]
[Result "1/2-1/2"]
[ECO "C07"]
[WhiteElo "2014"]
[BlackElo "2281"]
[Annotator "ChessBase"]
[PlyCount "44"]
[EventDate "2022.02.20"]
[EventType "swiss"]
[EventCountry "ROU"]
[SourceTitle "playchess.com"]
[Source "ChessBase"]
[SourceQuality "1"]
[TimeControl "40/5400+30:900+30"]

1. e4 {[%emt 0:00:21]} e6 {[%emt 0:00:13]} 2. d4 {[%emt 0:00:55]} d5 {[%emt 0:00:09]} 3. Nd2 {[%emt 0:00:07]} c5 {[%emt 0:00:07]} 4. exd5 {[%emt 0:00:14]} Qxd5 {[%emt 0:00:12]} 5. Ngf3 {[%emt 0:00:16]} cxd4 {[%emt 0:00:23]} 6. Bc4 {[%emt 0:00:11]} Qd6 {[%emt 0:00:06]} 7. O-O {[%emt 0:00:24]} Nf6 {[%emt 0:00:09]} 8. Nb3 {[%emt 0:00:36]} Nc6 {[%emt 0:00:26]} 9. Nbxd4 {[%emt 0:01:19]} Nxd4 {[%emt 0:00:10]} 10. Nxd4 {[%emt 0:00:09]} Be7 {[%emt 0:00:15]} 11. b3 {[%emt 0:01:59]} O-O {[%emt 0:02:04]} 12. Bb2 {[%emt 0:00:17]} Qf4 {[%emt 0:02:29]} 13. Qf3 {[%emt 0:07:33]} Qxf3 {[%emt 0:00:23]} 14. Nxf3 {[%emt 0:00:05]} b6 {[%emt 0:01:36]} 15. Rad1 {[%emt 0:05:18]} Bb7 {[%emt 0:02:32]} 16. Ne5 {[%emt 0:01:39]} Rad8 {[%emt 0:08:51]} 17. Bb5 {[%emt 0:10:33]} Rxd1 {[%emt 0:20:51]} 18. Rxd1 {[%emt 0:00:06]} Rc8 {[%emt 0:00:09]} 19. c4 {[%emt 0:11:38]} h6 {[%emt 0:12:57]} 20. Kf1 {[%emt 0:14:33]} a6 {[%emt 0:17:00]} 21. Ba4 {[%emt 0:03:53]} Bc5 {[%emt 0:03:03]} 22. f3 {[%emt 0:08:55]} Ba8 {[%emt 0:18:09]} 1/2-1/2

[Event "Romanian-ch Women 2022"]
[Site "Eforie Nord"]
[Date "2022.02.21"]
[Round "2.3"]
[White "Sandu, Mihaela"]
[Black "Obada, Ema"]
[Result "1-0"]
[ECO "C06"]
[WhiteElo "2269"]
[BlackElo "2010"]
[Annotator "ChessBase"]
[PlyCount "91"]
[EventDate "2022.02.20"]
[EventType "swiss"]
[EventCountry "ROU"]
[SourceTitle "playchess.com"]
[Source "ChessBase"]
[SourceQuality "1"]
[TimeControl "40/5400+30:900+30"]

1. e4 {[%emt 0:00:04]} e6 {[%emt 0:00:07]} 2. d4 {[%emt 0:00:04]} d5 {[%emt 0:00:05]} 3. Nd2 {[%emt 0:00:04]} Nf6 {[%emt 0:00:06]} 4. e5 {[%emt 0:00:07]} Nfd7 {[%emt 0:00:05]} 5. Bd3 {[%emt 0:00:06]} c5 {[%emt 0:00:09]} 6. c3 {[%emt 0:00:04]} Nc6 {[%emt 0:00:19]} 7. Ne2 {[%emt 0:01:49]} cxd4 {[%emt 0:03:09]} 8. cxd4 {[%emt 0:00:06]} f6 {[%emt 0:01:35]} 9. exf6 {[%emt 0:00:17]} Nxf6 {[%emt 0:00:05]} 10. Nf3 {[%emt 0:03:04]} Bd6 {[%emt 0:00:33]} 11. O-O {[%emt 0:02:45]} Qc7 {[%emt 0:02:08]} 12. Bg5 {[%emt 0:00:32]} O-O {[%emt 0:00:14]} 13. Bh4 {[%emt 0:00:42]} Nh5 {[%emt 0:20:55]} 14. Qc2 {[%emt 0:01:36]} h6 {[%emt 0:00:15]} 15. Bh7+ {[%emt 0:00:08]} Kh8 {[%emt 0:00:04]} 16. Bg6 {[%emt 0:00:09]} Rxf3 {[%emt 0:05:44]} 17. Bxh5 {[%emt 0:01:32]} Rf8 {[%emt 0:00:16]} 18. Bg3 {[%emt 0:00:17]} Bd7 {[%emt 0:01:02]} 19. Qd2 {[%emt 0:14:44]} Rac8 {[%emt 0:08:03]} 20. Rac1 {[%emt 0:01:22]} Qb8 {[%emt 0:05:26]} 21. Rc3 {[%emt 0:18:31]} Ne7 {[%emt 0:03:34]} 22. Rxc8 {[%emt 0:06:12]} Bxc8 {[%emt 0:00:23]} 23. Re1 {[%emt 0:02:20]} Bd7 {[%emt 0:10:17]} 24. Nc3 {[%emt 0:21:41]} b5 {[%emt 0:14:07]} 25. Bg4 {[%emt 0:01:49]} b4 {[%emt 0:06:56]} 26. Ne2 {[%emt 0:01:29]} Nc6 {[%emt 0:05:56]} 27. Nc1 {[%emt 0:02:02]} Bf4 {[%emt 0:04:40]} 28. Qd1 {[%emt 0:00:52]} Qd6 {[%emt 0:05:34]} 29. Nd3 {[%emt 0:02:47]} Bxg3 {[%emt 0:00:09]} 30. hxg3 {[%emt 0:00:05]} Re8 {[%emt 0:02:52]} 31. Nf4 {[%emt 0:00:48]} Kg8 {[%emt 0:00:29]} 32. Bh5 {[%emt 0:05:58]} Rf8 {[%emt 0:00:20]} 33. Ng6 {[%emt 0:00:15]} Rf5 {[%emt 0:00:37]} 34. Bg4 {[%emt 0:00:57]} Rg5 {[%emt 0:00:20]} 35. Nh4 {[%emt 0:00:59]} Nxd4 {[%emt 0:00:48]} 36. f4 {[%emt 0:02:51]} Rxg4 {[%emt 0:00:13]} 37. Qxg4 {[%emt 0:00:06]} Nc2 {[%emt 0:00:45]} 38. Rc1 {[%emt 0:03:21]} Ne3 {[%emt 0:00:25]} 39. Qe2 {[%emt 0:03:10]} Nc4 {[%emt 0:00:36]} 40. b3 {[%emt 0:00:00]} Qb6+ {[%emt 0:00:00]} 41. Qf2 {[%emt 0:02:38]} Nd2 {[%emt 0:03:40]} 42. Qxb6 {[%emt 0:00:38]} axb6 {[%emt 0:00:04]} 43. Rc7 {[%emt 0:01:54]} Bb5 {[%emt 0:01:04]} 44. Nf3 {[%emt 0:00:33]} Ne4 {[%emt 0:03:09]} 45. Nd4 {[%emt 0:00:09]} Nc3 {[%emt 0:01:06]} 46. Nxe6 {[%emt 0:01:11]} 1-0

[Event "Romanian-ch Women 2022"]
[Site "Eforie Nord"]
[Date "2022.02.21"]
[Round "2.4"]
[White "Nikanova, Ekaterina"]
[Black "Ciolacu, Alessia-Mihaela"]
[Result "0-1"]
[ECO "C54"]
[WhiteElo "1935"]
[BlackElo "2239"]
[Annotator "ChessBase"]
[PlyCount "74"]
[EventDate "2022.02.20"]
[EventType "swiss"]
[EventCountry "ROU"]
[SourceTitle "playchess.com"]
[Source "ChessBase"]
[SourceQuality "1"]
[TimeControl "40/5400+30:900+30"]

1. e4 {[%emt 0:00:02]} e5 {[%emt 0:00:10]} 2. Nf3 {[%emt 0:00:15]} Nc6 {[%emt 0:00:05]} 3. Bc4 {[%emt 0:00:27]} Bc5 {[%emt 0:00:17]} 4. d3 {[%emt 0:01:04]} Nf6 {[%emt 0:00:21]} 5. c3 {[%emt 0:00:26]} a6 {[%emt 0:01:13]} 6. Bb3 {[%emt 0:01:19]} d6 {[%emt 0:00:42]} 7. Qe2 {[%emt 0:01:05]} O-O {[%emt 0:08:14]} 8. h3 {[%emt 0:02:43]} Be6 {[%emt 0:05:23]} 9. Bc2 {[%emt 0:00:32]} h6 {[%emt 0:01:28]} 10. Nbd2 {[%emt 0:00:58]} d5 {[%emt 0:02:30]} 11. Nf1 {[%emt 0:07:47]} Re8 {[%emt 0:02:03]} 12. g4 {[%emt 0:01:39]} b5 {[%emt 0:10:35]} 13. Ne3 {[%emt 0:04:22]} d4 {[%emt 0:07:37]} 14. Nf5 {[%emt 0:04:52]} Bxf5 {[%emt 0:03:05]} 15. gxf5 {[%emt 0:04:32]} dxc3 {[%emt 0:01:57]} 16. bxc3 {[%emt 0:02:23]} b4 {[%emt 0:01:09]} 17. Ba4 {[%emt 0:08:53]} Qd6 {[%emt 0:01:22]} 18. Nd2 {[%emt 0:06:21]} Nd7 {[%emt 0:11:31]} 19. Nc4 {[%emt 0:07:03]} Qf6 {[%emt 0:00:10]} 20. Bxc6 {[%emt 0:18:55]} Qxc6 {[%emt 0:00:08]} 21. Bd2 {[%emt 0:02:32]} bxc3 {[%emt 0:06:45]} 22. Bxc3 {[%emt 0:00:29]} Nb6 {[%emt 0:00:21]} 23. Nxb6 {[%emt 0:09:09]} cxb6 {[%emt 0:01:31]} 24. Qb2 {[%emt 0:02:28]} Rad8 {[%emt 0:01:48]} 25. Qd2 {[%emt 0:08:56]} Rc8 {[%emt 0:09:49]} 26. Bb2 {[%emt 0:01:45]} Qa4 {[%emt 0:01:40]} 27. a3 {[%emt 0:01:50]} Be7 {[%emt 0:06:27]} 28. O-O {[%emt 0:01:10]} Bg5 {[%emt 0:01:15]} 29. Qb4 {[%emt 0:00:26]} Qc2 {[%emt 0:01:10]} 30. Rad1 {[%emt 0:00:30]} b5 {[%emt 0:03:12]} 31. Ba1 {[%emt 0:00:29]} Qe2 {[%emt 0:00:26]} 32. Kg2 {[%emt 0:00:24]} Rc2 {[%emt 0:04:22]} 33. Qe1 {[%emt 0:00:30]} Qh5 {[%emt 0:00:36]} 34. Qa5 {[%emt 0:00:30]} Bf4 {[%emt 0:00:17]} 35. Qxa6 {[%emt 0:00:29]} Qg5+ {[%emt 0:00:11]} 36. Kf3 {[%emt 0:00:24]} Qh4 {[%emt 0:00:09]} 37. Kg2 {[%emt 0:00:16]} Qg3+ {[%emt 0:00:05]} 0-1

[Event "Romanian-ch Women 2022"]
[Site "Eforie Nord"]
[Date "2022.02.21"]
[Round "2.5"]
[White "Dragomirescu, Angela"]
[Black "Pitigoi, Sabina-Andreea"]
[Result "0-1"]
[ECO "A12"]
[WhiteElo "2167"]
[BlackElo "1766"]
[Annotator "ChessBase"]
[PlyCount "76"]
[EventDate "2022.02.20"]
[EventType "swiss"]
[EventCountry "ROU"]
[SourceTitle "playchess.com"]
[Source "ChessBase"]
[SourceQuality "1"]
[TimeControl "40/5400+30:900+30"]

1. Nf3 {[%emt 0:00:11]} d5 {[%emt 0:00:09]} 2. g3 {[%emt 0:00:39]} Bg4 {[%emt 0:04:05]} 3. Bg2 {[%emt 0:00:12]} Nf6 {[%emt 0:00:21]} 4. c4 {[%emt 0:02:16]} c6 {[%emt 0:02:14]} 5. O-O {[%emt 0:03:51]} e6 {[%emt 0:00:42]} 6. b3 {[%emt 0:02:50]} Bd6 {[%emt 0:02:07]} 7. Bb2 {[%emt 0:00:06]} O-O {[%emt 0:00:34]} 8. d3 {[%emt 0:02:22]} Qe7 {[%emt 0:02:36]} 9. Nbd2 {[%emt 0:05:51]} e5 {[%emt 0:14:02]} 10. h3 {[%emt 0:14:11]} Bh5 {[%emt 0:04:44]} 11. Nh4 {[%emt 0:08:46]} Bg6 {[%emt 0:03:14]} 12. Nxg6 {[%emt 0:11:06]} hxg6 {[%emt 0:00:22]} 13. e3 {[%emt 0:00:17]} Nbd7 {[%emt 0:03:29]} 14. Qc2 {[%emt 0:00:11]} Ba3 {[%emt 0:01:44]} 15. Bxa3 {[%emt 0:05:47]} Qxa3 {[%emt 0:00:06]} 16. cxd5 {[%emt 0:39:54]} cxd5 {[%emt 0:00:49]} 17. Rfc1 {[%emt 0:00:00]} Rac8 {[%emt 0:23:14]} 18. Qxc8 {[%emt 0:00:00]} Rxc8 {[%emt 0:00:04]} 19. Rxc8+ {[%emt 0:00:00]} Nf8 {[%emt 0:00:06]} 20. Rc2 {[%emt 0:00:00]} Ne6 {[%emt 0:01:55]} 21. Nf3 {[%emt 0:00:00]} Nd7 {[%emt 0:04:01]} 22. h4 {[%emt 0:00:00]} f5 {[%emt 0:06:50]} 23. Ng5 {[%emt 0:00:00]} Nxg5 {[%emt 0:00:53]} 24. Bxd5+ {[%emt 0:00:00]} Nf7 {[%emt 0:00:15]} 25. Rc8+ {[%emt 0:00:00]} Nf8 {[%emt 0:01:23]} 26. Rc7 {[%emt 0:00:00]} Qd6 {[%emt 0:04:53]} 27. Bxf7+ {[%emt 0:00:00]} Kh7 {[%emt 0:00:10]} 28. Rac1 {[%emt 0:00:00]} Qxd3 {[%emt 0:00:48]} 29. Rc8 {[%emt 0:05:32]} Qd2 {[%emt 0:00:27]} 30. R8c2 {[%emt 0:00:45]} Qd7 {[%emt 0:00:28]} 31. Bc4 {[%emt 0:00:12]} f4 {[%emt 0:01:00]} 32. exf4 {[%emt 0:00:25]} exf4 {[%emt 0:00:11]} 33. Re2 {[%emt 0:00:56]} b5 {[%emt 0:01:09]} 34. Rec2 {[%emt 0:00:37]} bxc4 {[%emt 0:00:13]} 35. bxc4 {[%emt 0:00:01]} Ne6 {[%emt 0:02:48]} 36. c5 {[%emt 0:00:04]} Nd4 {[%emt 0:00:51]} 37. Rb2 {[%emt 0:00:02]} Qh3 {[%emt 0:01:21]} 38. Rc3 {[%emt 0:00:53]} f3 {[%emt 0:00:09]} 0-1